[Event "Titled Tuesday Blitz August 16 Early 2022"]
[White "Delorme, Axel"]
[Black "Vysochin, Spartak"]
[WhiteFideId "632023"]
[BlackFideId "14103516"]
[WhiteElo "2474"]
[BlackElo "2355"]
[Result "1-0"]
[Round "03"]
[TimeControl "180+2"]
[Date "2022.08.18"]
[WhiteClock "0:00:00"]
[BlackClock "0:00:00"]

1. d4 {[%clk 0:00:00]}  d5 {[%clk 0:00:00]} 2. Nf3 {[%clk 0:00:00]}  Nf6 {[%clk 0:00:00]} 3. c4 {[%clk 0:00:00]}  e6 {[%clk 0:00:00]} 4. Nc3 {[%clk 0:00:00]}  Be7 {[%clk 0:00:00]} 5. Bg5 {[%clk 0:00:00]}  O-O {[%clk 0:00:00]} 6. e3 {[%clk 0:00:00]}  b6 {[%clk 0:00:00]} 7. cxd5 {[%clk 0:00:00]}  exd5 {[%clk 0:00:00]} 8. Bd3 {[%clk 0:00:00]}  Bb7 {[%clk 0:00:00]} 9. O-O {[%clk 0:00:00]}  h6 {[%clk 0:00:00]} 10. Bh4 {[%clk 0:00:00]}  Nbd7 {[%clk 0:00:00]} 11. Rc1 {[%clk 0:00:00]}  Rc8 {[%clk 0:00:00]} 12. Bf5 {[%clk 0:00:00]}  Re8 {[%clk 0:00:00]} 13. Re1 {[%clk 0:00:00]}  Nh7 {[%clk 0:00:00]} 14. Bxe7 {[%clk 0:00:00]}  Qxe7 {[%clk 0:00:00]} 15. Qb3 {[%clk 0:00:00]}  c6 {[%clk 0:00:00]} 16. Ne5 {[%clk 0:00:00]}  Nxe5 {[%clk 0:00:00]} 17. Bxc8 {[%clk 0:00:00]}  Bxc8 {[%clk 0:00:00]} 18. dxe5 {[%clk 0:00:00]}  Qxe5 {[%clk 0:00:00]} 19. Ne2 {[%clk 0:00:00]}  Bd7 {[%clk 0:00:00]} 20. Qc3 {[%clk 0:00:00]}  Qg5 {[%clk 0:00:00]} 21. Qd4 {[%clk 0:00:00]}  Re4 {[%clk 0:00:00]} 22. Qd2 {[%clk 0:00:00]}  Nf6 {[%clk 0:00:00]} 23. Ng3 {[%clk 0:00:00]}  Rh4 {[%clk 0:00:00]} 24. f3 {[%clk 0:00:00]}  h5 {[%clk 0:00:00]} 25. b3 {[%clk 0:00:00]}  a5 {[%clk 0:00:00]} 26. Rcd1 {[%clk 0:00:00]}  Rb4 {[%clk 0:00:00]} 27. e4 {[%clk 0:00:00]}  Qxd2 {[%clk 0:00:00]} 28. Rxd2 {[%clk 0:00:00]}  h4 {[%clk 0:00:00]} 29. e5 {[%clk 0:00:00]}  hxg3 {[%clk 0:00:00]} 30. exf6 {[%clk 0:00:00]}  gxh2+ {[%clk 0:00:00]} 31. Kxh2 {[%clk 0:00:00]}  gxf6 {[%clk 0:00:00]} 32. Re7 {[%clk 0:00:00]}  Be6 {[%clk 0:00:00]} 33. Kg3 {[%clk 0:00:00]}  c5 {[%clk 0:00:00]} 34. Rc7 {[%clk 0:00:00]}  a4 {[%clk 0:00:00]} 35. bxa4 {[%clk 0:00:00]}  Rxa4 {[%clk 0:00:00]} 36. Rb2 {[%clk 0:00:00]}  d4 {[%clk 0:00:00]} 37. Rxb6 {[%clk 0:00:00]}  c4 {[%clk 0:00:00]} 38. Rd6 {[%clk 0:00:00]}  d3 {[%clk 0:00:00]} 39. a3 {[%clk 0:00:00]}  Rxa3 {[%clk 0:00:00]} 40. Rxe6 {[%clk 0:00:00]}  fxe6 {[%clk 0:00:00]} 41. Rxc4 {[%clk 0:00:00]}  Kf7 {[%clk 0:00:00]} 42. Rd4 {[%clk 0:00:00]}  e5 {[%clk 0:00:00]} 43. Rb4 {[%clk 0:00:00]}  Ke6 {[%clk 0:00:00]} 44. Kf2 {[%clk 0:00:00]}  Kd5 {[%clk 0:00:00]} 45. Ke3 {[%clk 0:00:00]}  f5 {[%clk 0:00:00]} 46. Rb5+ {[%clk 0:00:00]}  Ke6 {[%clk 0:00:00]} 47. Rb6+ {[%clk 0:00:00]}  Kd5 {[%clk 0:00:00]} 48. Rb5+ {[%clk 0:00:00]}  Kd6 {[%clk 0:00:00]} 49. g3 {[%clk 0:00:00]}  Rc3 {[%clk 0:00:00]} 50. f4 {[%clk 0:00:00]}  e4 {[%clk 0:00:00]} 51. Rxf5 {[%clk 0:00:00]}  Rc2 {[%clk 0:00:00]} 52. Kxe4 {[%clk 0:00:00]}  d2 {[%clk 0:00:00]} 53. Rd5+ {[%clk 0:00:00]}  Kc6 {[%clk 0:00:00]} 54. Rd8 {[%clk 0:00:00]}  Kb5 {[%clk 0:00:00]} 55. g4 {[%clk 0:00:00]}  Kb4 {[%clk 0:00:00]} 56. g5 {[%clk 0:00:00]}  Kb3 {[%clk 0:00:00]} 57. Rxd2 {[%clk 0:00:00]}  Kb4 {[%clk 0:00:00]} 58. Rxc2 {[%clk 0:00:00]}  Kb3 {[%clk 0:00:00]} 59. g6 {[%clk 0:00:00]}  Kxc2 {[%clk 0:00:00]} 60. g7 {[%clk 0:00:00]}  Kc3 {[%clk 0:00:00]} 61. g8=Q {[%clk 0:00:00]}  Kc2 {[%clk 0:00:00]} 62. Qe6 {[%clk 0:00:00]}  Kb2 {[%clk 0:00:00]} 63. f5 {[%clk 0:00:00]}  Kc2 {[%clk 0:00:00]} 64. f6 {[%clk 0:00:00]}  Kb2 {[%clk 0:00:00]} 65. f7 {[%clk 0:00:00]}  Kc2 {[%clk 0:00:00]} 66. Qd6 {[%clk 0:00:00]}  Kb2 {[%clk 0:00:00]} 67. Qc6 {[%clk 0:00:00]}  Kb3 {[%clk 0:00:00]} 68. Kd3 {[%clk 0:00:00]}  Ka2 {[%clk 0:00:00]} 69. Qb6 {[%clk 0:00:00]}  Ka3 {[%clk 0:00:00]} 70. Kc3 {[%clk 0:00:00]}  Ka2 {[%clk 0:00:00]} 71. Qb2# {[%clk 0:00:00]} 1-0


[Site "https://www.chess.com"]

[Event "Titled Tuesday Blitz August 16 Early 2022"]
[White "Demin, Vladimir"]
[Black "Rose, Felix"]
[WhiteFideId "4167457"]
[BlackFideId "5105722"]
[WhiteElo "2430"]
[BlackElo "2039"]
[Result "1-0"]
[Round "03"]
[TimeControl "180+2"]
[Date "2022.08.18"]
[WhiteClock "0:00:00"]
[BlackClock "0:00:00"]

1. d4 {[%clk 0:00:00]}  d5 {[%clk 0:00:00]} 2. Nc3 {[%clk 0:00:00]}  Nf6 {[%clk 0:00:00]} 3. Bf4 {[%clk 0:00:00]}  c5 {[%clk 0:00:00]} 4. e4 {[%clk 0:00:00]}  Nxe4 {[%clk 0:00:00]} 5. Nxe4 {[%clk 0:00:00]}  dxe4 {[%clk 0:00:00]} 6. dxc5 {[%clk 0:00:00]}  Qxd1+ {[%clk 0:00:00]} 7. Rxd1 {[%clk 0:00:00]}  Nc6 {[%clk 0:00:00]} 8. f3 {[%clk 0:00:00]}  e5 {[%clk 0:00:00]} 9. Be3 {[%clk 0:00:00]}  exf3 {[%clk 0:00:00]} 10. Nxf3 {[%clk 0:00:00]}  Bf5 {[%clk 0:00:00]} 11. c3 {[%clk 0:00:00]}  a5 {[%clk 0:00:00]} 12. Bc4 {[%clk 0:00:00]}  Be7 {[%clk 0:00:00]} 13. O-O {[%clk 0:00:00]}  O-O {[%clk 0:00:00]} 14. Bd5 {[%clk 0:00:00]}  Bf6 {[%clk 0:00:00]} 15. h3 {[%clk 0:00:00]}  Rfd8 {[%clk 0:00:00]} 16. g4 {[%clk 0:00:00]}  Bd7 {[%clk 0:00:00]} 17. g5 {[%clk 0:00:00]}  Be7 {[%clk 0:00:00]} 18. Kg2 {[%clk 0:00:00]}  a4 {[%clk 0:00:00]} 19. Kg3 {[%clk 0:00:00]}  Rac8 {[%clk 0:00:00]} 20. b4 {[%clk 0:00:00]}  axb3 {[%clk 0:00:00]} 21. axb3 {[%clk 0:00:00]}  Ra8 {[%clk 0:00:00]} 22. b4 {[%clk 0:00:00]}  Ra3 {[%clk 0:00:00]} 23. b5 {[%clk 0:00:00]}  Na5 {[%clk 0:00:00]} 24. Nxe5 {[%clk 0:00:00]}  Rxc3 {[%clk 0:00:00]} 25. Bxf7+ {[%clk 0:00:00]}  Kh8 {[%clk 0:00:00]} 26. Rf3 {[%clk 0:00:00]}  Bxb5 {[%clk 0:00:00]} 27. Rxd8+ {[%clk 0:00:00]}  Bxd8 {[%clk 0:00:00]} 28. Be6 {[%clk 0:00:00]}  Be7 {[%clk 0:00:00]} 29. Nf7+ {[%clk 0:00:00]}  Kg8 {[%clk 0:00:00]} 30. Nd6+ {[%clk 0:00:00]}  Kh8 {[%clk 0:00:00]} 31. Nxb5 {[%clk 0:00:00]} 1-0


[Site "https://www.chess.com"]

[Event "Titled Tuesday Blitz August 16 Early 2022"]
[White "Djokic, Mihailo"]
[Black "Przybylski, Wojciech"]
[WhiteFideId "976440"]
[BlackFideId "1117599"]
[WhiteElo "2246"]
[BlackElo "2133"]
[Result "0-1"]
[Round "03"]
[TimeControl "180+2"]
[Date "2022.08.18"]
[WhiteClock "0:00:00"]
[BlackClock "0:00:00"]

1. e4 {[%clk 0:00:00]}  c5 {[%clk 0:00:00]} 2. Nf3 {[%clk 0:00:00]}  e6 {[%clk 0:00:00]} 3. d4 {[%clk 0:00:00]}  cxd4 {[%clk 0:00:00]} 4. Nxd4 {[%clk 0:00:00]}  Nc6 {[%clk 0:00:00]} 5. Nc3 {[%clk 0:00:00]}  Qc7 {[%clk 0:00:00]} 6. Be2 {[%clk 0:00:00]}  a6 {[%clk 0:00:00]} 7. O-O {[%clk 0:00:00]}  Nf6 {[%clk 0:00:00]} 8. Be3 {[%clk 0:00:00]}  Be7 {[%clk 0:00:00]} 9. f4 {[%clk 0:00:00]}  d6 {[%clk 0:00:00]} 10. Kh1 {[%clk 0:00:00]}  O-O {[%clk 0:00:00]} 11. Qe1 {[%clk 0:00:00]}  Nxd4 {[%clk 0:00:00]} 12. Bxd4 {[%clk 0:00:00]}  b5 {[%clk 0:00:00]} 13. a3 {[%clk 0:00:00]}  Bb7 {[%clk 0:00:00]} 14. Qg3 {[%clk 0:00:00]}  Rad8 {[%clk 0:00:00]} 15. Rae1 {[%clk 0:00:00]}  Rd7 {[%clk 0:00:00]} 16. Bf3 {[%clk 0:00:00]}  Re8 {[%clk 0:00:00]} 17. e5 {[%clk 0:00:00]}  dxe5 {[%clk 0:00:00]} 18. Bxe5 {[%clk 0:00:00]}  Qc8 {[%clk 0:00:00]} 19. Ne4 {[%clk 0:00:00]}  Bxe4 {[%clk 0:00:00]} 20. Bxe4 {[%clk 0:00:00]}  g6 {[%clk 0:00:00]} 21. Bd3 {[%clk 0:00:00]}  Nh5 {[%clk 0:00:00]} 22. Qg4 {[%clk 0:00:00]}  Bf6 {[%clk 0:00:00]} 23. Qh3 {[%clk 0:00:00]}  Bxe5 {[%clk 0:00:00]} 24. fxe5 {[%clk 0:00:00]}  Rd4 {[%clk 0:00:00]} 25. Qe3 {[%clk 0:00:00]}  Red8 {[%clk 0:00:00]} 26. Qg5 {[%clk 0:00:00]}  Qb7 {[%clk 0:00:00]} 27. Rf2 {[%clk 0:00:00]}  a5 {[%clk 0:00:00]} 28. Ref1 {[%clk 0:00:00]}  R8d7 {[%clk 0:00:00]} 29. Kg1 {[%clk 0:00:00]}  b4 {[%clk 0:00:00]} 30. axb4 {[%clk 0:00:00]}  axb4 {[%clk 0:00:00]} 31. b3 {[%clk 0:00:00]}  Qb6 {[%clk 0:00:00]} 32. Kh1 {[%clk 0:00:00]}  Qc7 {[%clk 0:00:00]} 33. Rf3 {[%clk 0:00:00]}  R4d5 {[%clk 0:00:00]} 34. Re1 {[%clk 0:00:00]}  Qd8 {[%clk 0:00:00]} 35. Qg4 {[%clk 0:00:00]}  Ng7 {[%clk 0:00:00]} 36. Rh3 {[%clk 0:00:00]}  h5 {[%clk 0:00:00]} 37. Qf4 {[%clk 0:00:00]}  Rd4 {[%clk 0:00:00]} 38. Qd2 {[%clk 0:00:00]}  R7d5 {[%clk 0:00:00]} 39. Rf3 {[%clk 0:00:00]}  Nf5 {[%clk 0:00:00]} 40. Qf2 {[%clk 0:00:00]}  Nh4 {[%clk 0:00:00]} 41. Rf4 {[%clk 0:00:00]}  Rxf4 {[%clk 0:00:00]} 42. Qxf4 {[%clk 0:00:00]}  Nf5 {[%clk 0:00:00]} 43. Qxb4 {[%clk 0:00:00]}  Qg5 {[%clk 0:00:00]} 44. Rg1 {[%clk 0:00:00]}  Ne3 {[%clk 0:00:00]} 45. Qe4 {[%clk 0:00:00]}  Rxe5 {[%clk 0:00:00]} 46. Qf3 {[%clk 0:00:00]}  Ng4 {[%clk 0:00:00]} 47. h3 {[%clk 0:00:00]}  Re3 {[%clk 0:00:00]} 48. Qa8+ {[%clk 0:00:00]}  Kg7 {[%clk 0:00:00]} 49. Rf1 {[%clk 0:00:00]}  Ne5 {[%clk 0:00:00]} 50. Qa7 {[%clk 0:00:00]}  h4 {[%clk 0:00:00]} 51. Qb7 {[%clk 0:00:00]}  Qg3 {[%clk 0:00:00]} 52. Be4 {[%clk 0:00:00]}  Qg5 {[%clk 0:00:00]} 53. Bf3 {[%clk 0:00:00]}  Rc3 {[%clk 0:00:00]} 54. Bd1 {[%clk 0:00:00]}  Rc5 {[%clk 0:00:00]} 55. Qe4 {[%clk 0:00:00]}  Rc3 {[%clk 0:00:00]} 56. Qf4 {[%clk 0:00:00]}  Qxf4 {[%clk 0:00:00]} 57. Rxf4 {[%clk 0:00:00]}  g5 {[%clk 0:00:00]} 58. Re4 {[%clk 0:00:00]}  Kf6 {[%clk 0:00:00]} 59. Kg1 {[%clk 0:00:00]}  Nc6 {[%clk 0:00:00]} 60. b4 {[%clk 0:00:00]}  Ne7 {[%clk 0:00:00]} 61. Re2 {[%clk 0:00:00]}  Nd5 {[%clk 0:00:00]} 62. b5 {[%clk 0:00:00]}  Rc4 {[%clk 0:00:00]} 63. Rf2+ {[%clk 0:00:00]}  Ke7 {[%clk 0:00:00]} 64. Rd2 {[%clk 0:00:00]}  Rb4 {[%clk 0:00:00]} 65. Be2 {[%clk 0:00:00]}  Rb1+ {[%clk 0:00:00]} 66. Kf2 {[%clk 0:00:00]}  Nc3 {[%clk 0:00:00]} 67. Bc4 {[%clk 0:00:00]}  Ne4+ {[%clk 0:00:00]} 68. Ke3 {[%clk 0:00:00]}  Nxd2 {[%clk 0:00:00]} 69. Kxd2 {[%clk 0:00:00]}  Kd6 {[%clk 0:00:00]} 70. Bd3 {[%clk 0:00:00]}  Rg1 {[%clk 0:00:00]} 71. Be4 {[%clk 0:00:00]}  Kc5 {[%clk 0:00:00]} 72. Bc6 {[%clk 0:00:00]}  Rf1 {[%clk 0:00:00]} 73. Ke2 {[%clk 0:00:00]}  Rf4 {[%clk 0:00:00]} 74. Kd3 {[%clk 0:00:00]}  f5 {[%clk 0:00:00]} 75. Bd7 {[%clk 0:00:00]}  e5 {[%clk 0:00:00]} 76. Kc3 {[%clk 0:00:00]}  e4 {[%clk 0:00:00]} 77. Kd2 {[%clk 0:00:00]}  Rf2+ {[%clk 0:00:00]} 78. Ke3 {[%clk 0:00:00]}  Rxc2 {[%clk 0:00:00]} 79. Bxf5 {[%clk 0:00:00]}  Rc3+ {[%clk 0:00:00]} 80. Kxe4 {[%clk 0:00:00]}  Kxb5 {[%clk 0:00:00]} 81. Bg4 {[%clk 0:00:00]}  Rc5 {[%clk 0:00:00]} 82. Kd4 {[%clk 0:00:00]}  Kc6 {[%clk 0:00:00]} 83. Ke4 {[%clk 0:00:00]}  Kd6 {[%clk 0:00:00]} 84. Be2 {[%clk 0:00:00]}  Re5+ {[%clk 0:00:00]} 85. Kf3 {[%clk 0:00:00]}  Kd5 {[%clk 0:00:00]} 86. Bd3 {[%clk 0:00:00]}  Kd4 {[%clk 0:00:00]} 87. Bg6 {[%clk 0:00:00]}  Kd5 {[%clk 0:00:00]} 88. Bf7+ {[%clk 0:00:00]}  Kd6 {[%clk 0:00:00]} 89. Bg8 {[%clk 0:00:00]}  Ke7 {[%clk 0:00:00]} 90. Kg4 {[%clk 0:00:00]}  Kf6 {[%clk 0:00:00]} 91. Bb3 {[%clk 0:00:00]}  Re4+ {[%clk 0:00:00]} 92. Kf3 {[%clk 0:00:00]}  Rb4 {[%clk 0:00:00]} 93. Bd1 {[%clk 0:00:00]}  Rf4+ {[%clk 0:00:00]} 94. Ke3 {[%clk 0:00:00]}  Ke5 {[%clk 0:00:00]} 95. Bf3 {[%clk 0:00:00]}  Rb4 {[%clk 0:00:00]} 96. Bg4 {[%clk 0:00:00]}  Rb3+ {[%clk 0:00:00]} 97. Kf2 {[%clk 0:00:00]}  Kf4 {[%clk 0:00:00]} 98. Be2 {[%clk 0:00:00]}  Rb2 {[%clk 0:00:00]} 99. Ke1 {[%clk 0:00:00]}  Kg3 {[%clk 0:00:00]} 100. Bf3 {[%clk 0:00:00]}  Rxg2 {[%clk 0:00:00]} 101. Bxg2 {[%clk 0:00:00]}  Kxg2 {[%clk 0:00:00]} 102. Ke2 {[%clk 0:00:00]}  Kxh3 {[%clk 0:00:00]} 103. Kf3 {[%clk 0:00:00]}  g4+ {[%clk 0:00:00]} 104. Kf2 {[%clk 0:00:00]}  Kh2 {[%clk 0:00:00]} 105. Kf1 {[%clk 0:00:00]}  g3 {[%clk 0:00:00]} 106. Ke2 {[%clk 0:00:00]}  g2 {[%clk 0:00:00]} 107. Kf2 {[%clk 0:00:00]}  g1=Q+ {[%clk 0:00:00]} 0-1


[Site "https://www.chess.com"]

[Event "Titled Tuesday Blitz August 16 Early 2022"]
[White "Ezat, Mohamed"]
[Black "Munkhgal, Gombosuren"]
[WhiteFideId "10600906"]
[BlackFideId "4901266"]
[WhiteElo "2386"]
[BlackElo "2576"]
[Result "0-1"]
[Round "03"]
[TimeControl "180+1"]
[Date "2022.08.16"]
[WhiteClock "0:00:01"]
[BlackClock "0:00:05"]

1. d4 {[%clk 0:03:00]}  Nf6 {[%clk 0:02:59]} 2. c4 {[%clk 0:03:00]}  e6 {[%clk 0:03:00]} 3. Nf3 {[%clk 0:03:00]}  d5 {[%clk 0:03:00]} 4. Nc3 {[%clk 0:02:59]}  a6 {[%clk 0:02:59]} 5. cxd5 {[%clk 0:02:54]}  exd5 {[%clk 0:03:00]} 6. Bg5 {[%clk 0:02:53]}  Be6 {[%clk 0:03:01]} 7. e3 {[%clk 0:02:53]}  Nbd7 {[%clk 0:03:01]} 8. Bd3 {[%clk 0:02:52]}  c6 {[%clk 0:03:02]} 9. O-O {[%clk 0:02:52]}  Bd6 {[%clk 0:03:02]} 10. Rb1 {[%clk 0:02:43]}  Qc7 {[%clk 0:03:01]} 11. b4 {[%clk 0:02:36]}  O-O {[%clk 0:02:52]} 12. h3 {[%clk 0:02:28]}  h6 {[%clk 0:02:51]} 13. Bxf6 {[%clk 0:02:28]}  Nxf6 {[%clk 0:02:51]} 14. Qc2 {[%clk 0:02:23]}  Qe7 {[%clk 0:02:46]} 15. a3 {[%clk 0:02:21]}  Rfe8 {[%clk 0:02:31]} 16. Na4 {[%clk 0:02:20]}  Rad8 {[%clk 0:02:10]} 17. Nc5 {[%clk 0:02:19]}  Bc8 {[%clk 0:02:10]} 18. a4 {[%clk 0:02:14]}  Ne4 {[%clk 0:02:10]} 19. Rfc1 {[%clk 0:01:29]}  f5 {[%clk 0:01:54]} 20. b5 {[%clk 0:01:27]}  axb5 {[%clk 0:01:52]} 21. axb5 {[%clk 0:01:27]}  f4 {[%clk 0:01:39]} 22. exf4 {[%clk 0:01:20]}  Nxc5 {[%clk 0:01:35]} 23. dxc5 {[%clk 0:01:18]}  Bxf4 {[%clk 0:01:36]} 24. Re1 {[%clk 0:01:18]}  Qf6 {[%clk 0:01:35]} 25. bxc6 {[%clk 0:01:14]}  bxc6 {[%clk 0:01:35]} 26. Bg6 {[%clk 0:01:11]}  Rf8 {[%clk 0:01:22]} 27. Qd3 {[%clk 0:01:07]}  Bc7 {[%clk 0:01:21]} 28. Re3 {[%clk 0:00:27]}  Bf4 {[%clk 0:01:14]} 29. Re2 {[%clk 0:00:27]}  Bc7 {[%clk 0:01:07]} 30. Rbe1 {[%clk 0:00:25]}  Ba5 {[%clk 0:00:57]} 31. Rb1 {[%clk 0:00:22]}  Bc3 {[%clk 0:00:33]} 32. Rb8 {[%clk 0:00:19]}  Ba6 {[%clk 0:00:21]} 33. Qxa6 {[%clk 0:00:17]}  Rxb8 {[%clk 0:00:21]} 34. Bc2 {[%clk 0:00:17]}  Rbe8 {[%clk 0:00:14]} 35. Qd3 {[%clk 0:00:16]}  Rxe2 {[%clk 0:00:13]} 36. Qxe2 {[%clk 0:00:16]}  g6 {[%clk 0:00:07]} 37. Qe3 {[%clk 0:00:16]}  Kg7 {[%clk 0:00:07]} 38. h4 {[%clk 0:00:12]}  h5 {[%clk 0:00:06]} 39. Ng5 {[%clk 0:00:10]}  Rf7 {[%clk 0:00:05]} 40. Nxf7 {[%clk 0:00:09]}  Kxf7 {[%clk 0:00:05]} 41. Qg3 {[%clk 0:00:09]}  Bd4 {[%clk 0:00:05]} 42. Qc7+ {[%clk 0:00:06]}  Kg8 {[%clk 0:00:05]} 43. Qg3 {[%clk 0:00:04]}  Kg7 {[%clk 0:00:05]} 44. Qc7+ {[%clk 0:00:04]}  Kh6 {[%clk 0:00:06]} 45. Qg3 {[%clk 0:00:05]}  Bxc5 {[%clk 0:00:06]} 46. Kf1 {[%clk 0:00:03]}  Bd6 {[%clk 0:00:06]} 47. Qe3+ {[%clk 0:00:02]}  Bf4 {[%clk 0:00:06]} 48. Qe8 {[%clk 0:00:03]}  c5 {[%clk 0:00:05]} 49. Qe2 {[%clk 0:00:03]}  c4 {[%clk 0:00:04]} 50. Qf3 {[%clk 0:00:02]}  d4 {[%clk 0:00:04]} 51. g3 {[%clk 0:00:01]}  d3 {[%clk 0:00:05]} 0-1


[Site "https://www.chess.com"]

[Event "Titled Tuesday Blitz August 16 Early 2022"]
[White "Fernandez, Fernando"]
[Black "Fernandez Siles, Luis"]
[WhiteFideId "3802299"]
[BlackFideId "2209420"]
[WhiteElo "2292"]
[BlackElo "2211"]
[Result "1-0"]
[Round "03"]
[TimeControl "180+2"]
[Date "2022.08.18"]
[WhiteClock "0:00:00"]
[BlackClock "0:00:00"]

1. e4 {[%clk 0:00:00]}  c5 {[%clk 0:00:00]} 2. Nc3 {[%clk 0:00:00]}  Nc6 {[%clk 0:00:00]} 3. Nf3 {[%clk 0:00:00]}  e5 {[%clk 0:00:00]} 4. Bc4 {[%clk 0:00:00]}  g6 {[%clk 0:00:00]} 5. d3 {[%clk 0:00:00]}  h6 {[%clk 0:00:00]} 6. a4 {[%clk 0:00:00]}  Bg7 {[%clk 0:00:00]} 7. Nd5 {[%clk 0:00:00]}  Nge7 {[%clk 0:00:00]} 8. c3 {[%clk 0:00:00]}  d6 {[%clk 0:00:00]} 9. Bd2 {[%clk 0:00:00]}  Nxd5 {[%clk 0:00:00]} 10. Bxd5 {[%clk 0:00:00]}  Ne7 {[%clk 0:00:00]} 11. Bc4 {[%clk 0:00:00]}  d5 {[%clk 0:00:00]} 12. Bb5+ {[%clk 0:00:00]}  Bd7 {[%clk 0:00:00]} 13. Qb3 {[%clk 0:00:00]}  a6 {[%clk 0:00:00]} 14. Bxd7+ {[%clk 0:00:00]}  Qxd7 {[%clk 0:00:00]} 15. Rd1 {[%clk 0:00:00]}  O-O {[%clk 0:00:00]} 16. O-O {[%clk 0:00:00]}  b5 {[%clk 0:00:00]} 17. exd5 {[%clk 0:00:00]}  Qxd5 {[%clk 0:00:00]} 18. Qxd5 {[%clk 0:00:00]}  Nxd5 {[%clk 0:00:00]} 19. Rfe1 {[%clk 0:00:00]}  Rfe8 {[%clk 0:00:00]} 20. Ra1 {[%clk 0:00:00]}  b4 {[%clk 0:00:00]} 21. cxb4 {[%clk 0:00:00]}  cxb4 {[%clk 0:00:00]} 22. Rac1 {[%clk 0:00:00]}  Rac8 {[%clk 0:00:00]} 23. Rc4 {[%clk 0:00:00]}  Rxc4 {[%clk 0:00:00]} 24. dxc4 {[%clk 0:00:00]}  Nb6 {[%clk 0:00:00]} 25. b3 {[%clk 0:00:00]}  a5 {[%clk 0:00:00]} 26. Be3 {[%clk 0:00:00]}  Nd7 {[%clk 0:00:00]} 27. Rd1 {[%clk 0:00:00]}  Nf6 {[%clk 0:00:00]} 28. Bb6 {[%clk 0:00:00]}  e4 {[%clk 0:00:00]} 29. Ne1 {[%clk 0:00:00]}  Ng4 {[%clk 0:00:00]} 30. Bxa5 {[%clk 0:00:00]}  e3 {[%clk 0:00:00]} 31. fxe3 {[%clk 0:00:00]}  Nxe3 {[%clk 0:00:00]} 32. Rd3 {[%clk 0:00:00]}  Nxc4 {[%clk 0:00:00]} 33. Bxb4 {[%clk 0:00:00]}  Ne5 {[%clk 0:00:00]} 34. Rd1 {[%clk 0:00:00]}  Rb8 {[%clk 0:00:00]} 35. Nc2 {[%clk 0:00:00]}  Nc6 {[%clk 0:00:00]} 36. Be1 {[%clk 0:00:00]}  Rxb3 {[%clk 0:00:00]} 37. h3 {[%clk 0:00:00]}  Rb2 {[%clk 0:00:00]} 38. Rc1 {[%clk 0:00:00]}  Nd4 {[%clk 0:00:00]} 39. Nxd4 {[%clk 0:00:00]}  Bxd4+ {[%clk 0:00:00]} 40. Kf1 {[%clk 0:00:00]}  Ra2 {[%clk 0:00:00]} 41. Rc4 {[%clk 0:00:00]}  Be3 {[%clk 0:00:00]} 42. g4 {[%clk 0:00:00]}  Bg5 {[%clk 0:00:00]} 43. h4 {[%clk 0:00:00]}  Bf6 {[%clk 0:00:00]} 44. h5 {[%clk 0:00:00]}  Kg7 {[%clk 0:00:00]} 45. Rc6 {[%clk 0:00:00]}  g5 {[%clk 0:00:00]} 46. Rc4 {[%clk 0:00:00]}  Ra1 {[%clk 0:00:00]} 47. Ke2 {[%clk 0:00:00]}  Ra2+ {[%clk 0:00:00]} 48. Kf1 {[%clk 0:00:00]}  Ra1 {[%clk 0:00:00]} 49. Ke2 {[%clk 0:00:00]}  Ra2+ {[%clk 0:00:00]} 50. Bd2 {[%clk 0:00:00]}  Be7 {[%clk 0:00:00]} 51. Kd3 {[%clk 0:00:00]}  Ba3 {[%clk 0:00:00]} 52. Rc2 {[%clk 0:00:00]}  Ra1 {[%clk 0:00:00]} 53. Bc3+ {[%clk 0:00:00]} 1-0


[Site "https://www.chess.com"]

[Event "Titled Tuesday Blitz August 16 Early 2022"]
[White "Filippova, Margarita"]
[Black "Vlassov, Nikolai"]
[WhiteFideId "34199680"]
[BlackFideId "4103360"]
[WhiteElo "1734"]
[BlackElo "2324"]
[Result "0-1"]
[Round "03"]
[TimeControl "180+2"]
[Date "2022.08.18"]
[WhiteClock "0:00:00"]
[BlackClock "0:00:00"]

1. Nf3 {[%clk 0:00:00]}  c5 {[%clk 0:00:00]} 2. c4 {[%clk 0:00:00]}  g6 {[%clk 0:00:00]} 3. Nc3 {[%clk 0:00:00]}  Bg7 {[%clk 0:00:00]} 4. d4 {[%clk 0:00:00]}  cxd4 {[%clk 0:00:00]} 5. Nxd4 {[%clk 0:00:00]}  Nc6 {[%clk 0:00:00]} 6. e3 {[%clk 0:00:00]}  Nf6 {[%clk 0:00:00]} 7. Be2 {[%clk 0:00:00]}  O-O {[%clk 0:00:00]} 8. O-O {[%clk 0:00:00]}  b6 {[%clk 0:00:00]} 9. Bf3 {[%clk 0:00:00]}  Bb7 {[%clk 0:00:00]} 10. Qe2 {[%clk 0:00:00]}  Rc8 {[%clk 0:00:00]} 11. Rd1 {[%clk 0:00:00]}  Nxd4 {[%clk 0:00:00]} 12. exd4 {[%clk 0:00:00]}  Bxf3 {[%clk 0:00:00]} 13. gxf3 {[%clk 0:00:00]}  d5 {[%clk 0:00:00]} 14. cxd5 {[%clk 0:00:00]}  Nxd5 {[%clk 0:00:00]} 15. Nxd5 {[%clk 0:00:00]}  Qxd5 {[%clk 0:00:00]} 16. Be3 {[%clk 0:00:00]}  Rfd8 {[%clk 0:00:00]} 17. Rac1 {[%clk 0:00:00]}  Rxc1 {[%clk 0:00:00]} 18. Rxc1 {[%clk 0:00:00]}  Qxa2 {[%clk 0:00:00]} 19. Rc7 {[%clk 0:00:00]}  Qe6 {[%clk 0:00:00]} 20. Qd2 {[%clk 0:00:00]}  a5 {[%clk 0:00:00]} 21. Qc3 {[%clk 0:00:00]}  Qd6 {[%clk 0:00:00]} 22. Rc6 {[%clk 0:00:00]}  Qd5 {[%clk 0:00:00]} 23. Rxb6 {[%clk 0:00:00]}  Qxf3 {[%clk 0:00:00]} 24. Qc7 {[%clk 0:00:00]}  Qg4+ {[%clk 0:00:00]} 25. Kf1 {[%clk 0:00:00]}  Rc8 {[%clk 0:00:00]} 26. Rb8 {[%clk 0:00:00]}  Rxb8 {[%clk 0:00:00]} 27. Qxb8+ {[%clk 0:00:00]}  Bf8 {[%clk 0:00:00]} 28. Qb5 {[%clk 0:00:00]}  Qd1+ {[%clk 0:00:00]} 29. Kg2 {[%clk 0:00:00]}  a4 {[%clk 0:00:00]} 30. Qb8 {[%clk 0:00:00]}  Qb3 {[%clk 0:00:00]} 31. Qa8 {[%clk 0:00:00]}  e6 {[%clk 0:00:00]} 32. Kg1 {[%clk 0:00:00]}  g5 {[%clk 0:00:00]} 33. Qd8 {[%clk 0:00:00]}  h6 {[%clk 0:00:00]} 34. h4 {[%clk 0:00:00]}  Qd1+ {[%clk 0:00:00]} 35. Kh2 {[%clk 0:00:00]}  Qh5 {[%clk 0:00:00]} 36. d5 {[%clk 0:00:00]}  Qxh4+ {[%clk 0:00:00]} 37. Kg1 {[%clk 0:00:00]}  Qg4+ {[%clk 0:00:00]} 38. Kh2 {[%clk 0:00:00]}  Kg7 {[%clk 0:00:00]} 39. dxe6 {[%clk 0:00:00]}  Qxe6 {[%clk 0:00:00]} 40. Bd4+ {[%clk 0:00:00]}  f6 {[%clk 0:00:00]} 41. Qc7+ {[%clk 0:00:00]}  Kg6 {[%clk 0:00:00]} 42. Qc2+ {[%clk 0:00:00]}  f5 {[%clk 0:00:00]} 43. Qxa4 {[%clk 0:00:00]}  Bd6+ {[%clk 0:00:00]} 44. Kg1 {[%clk 0:00:00]}  Qe1+ {[%clk 0:00:00]} 45. Kg2 {[%clk 0:00:00]}  Qe4+ {[%clk 0:00:00]} 46. Kg1 {[%clk 0:00:00]}  Kh5 {[%clk 0:00:00]} 47. Qd1+ {[%clk 0:00:00]}  g4 {[%clk 0:00:00]} 48. Bf6 {[%clk 0:00:00]}  Qf4 {[%clk 0:00:00]} 49. Qe2 {[%clk 0:00:00]}  Qh2+ {[%clk 0:00:00]} 50. Kf1 {[%clk 0:00:00]}  Qh1# {[%clk 0:00:00]} 0-1


[Site "https://www.chess.com"]